Cogmind - Beta 14 @@@ ROGUE MODE // 2024.09.02 @ 00:48:52 Player: star Result: Destroyed by WT-R9H(R) with Subdweller Laser Performance ------------- Evolutions (0) 0 Regions Visited (2) 400 Robots Destroyed (24) 120 Value Destroyed (621) 621 Prototype IDs (0) 0 Alien Tech Used (0) 0 Bonus (0) 0 TOTAL SCORE: 1141 Bonus ------- None Cogmind --------- Core Integrity 0/250 Matter 128/300 Energy 170/170 System Corruption 0% Temperature Cool (6) Movement Rolling (95) Ox1 Location -10/Subcaves Parts ------- > --- POWER (1) -------- Makeshift Power Source > --- PROPULSION (2) --- Wheel > --- UTILITY (2) ------ (None) > --- WEAPON (2) ------- Barrage Gun Subdweller Shrapnel Launcher > --- INVENTORY (5) ---- Improved Heat Sink Medium Matter Pod (100) Structural Scanner Multitool Flamer Peak State ------------ > --- POWER ------------ Makeshift Power Source > --- PROPULSION ------- Wheel Wheel > --- UTILITY ---------- Scrap Shield > --- WEAPON ----------- Barrage Gun Flamer > --- INVENTORY -------- Improved Heat Sink Medium Matter Pod Structural Scanner Battle Rifle Multitool [Rating: 15] Favorites ----------- Power Ion Engine Engine Ion Engine Propulsion Wheel Leg Aluminum Leg Wheel Wheel Hover Unit Hover Unit Flight Unit Flight Unit Utility Small Storage Unit Storage Small Storage Unit Hackware Hacking Suite Protection Scrap Shield Weapon Light Assault Rifle Energy Gun Small Laser Ballistic Gun Light Assault Rifle Ballistic Cannon Light Cannon Launcher Subdweller Shrapnel Launcher Special Weapon Flamer Build | -11 -10 -10 ------- Run | Yrd Mat Sub Slots Evolved . | . . . Power . | . . . Propulsion . | . . . Utility . | . . . Weapon . | . . . Parts Attached 28 | 6 13 9 Power 3 | 1 1 1 Engine 3 | 1 1 1 Core . | . . . Reactor . | . . . Propulsion 11 | 2 7 2 Treads . | . . . Leg 5 | . 5 . Wheel 4 | 2 . 2 Hover 1 | . 1 . Flight 1 | . 1 . Utility 3 | 1 1 1 Device . | . . . Storage 1 | 1 . . Processor . | . . . Hackware 1 | . 1 . Protection 1 | . . 1 Artifact . | . . . Weapon 11 | 2 4 5 Energy Gun 1 | . 1 . Energy Cannon . | . . . Ballistic Gun 6 | 2 2 2 Ballistic Cannon 2 | . 1 1 Launcher 1 | . . 1 Special Weapon 1 | . . 1 Impact Weapon . | . . . Slashing Weapon . | . . . Piercing Weapon . | . . . Special Melee Weapon . | . . . Unidentified Prototypes . | . . . Parts Lost 8 | . 6 2 Power 2 | . 2 . Propulsion 3 | . 2 1 Utility 1 | . . 1 Weapon 2 | . 2 . Highest Loss Streak 2 | . 2 2 To Critical Strikes . | . . . Average Slot Usage (%) 83 | . 86 78 Engine 9 | . 10 6 Leg 10 | . 15 1 Wheel 13 | . 5 26 Hover 1 | . 1 . Storage 9 | . 14 1 Hackware 6 | . 10 1 Protection 4 | . . 11 Energy Gun 2 | . 2 2 Ballistic Gun 18 | . 21 12 Ballistic Cannon 2 | . 2 2 Special Weapon 4 | . . 10 Peak Build Rating 15 | 6 9 15 Average Rating 9 | 4 7 11 On Entrance 4 | . 6 8 Naked Turns . | . . . Heaviest Build 27 | 12 14 27 Greatest Support 20 | 20 20 20 Greatest Overweight (x) 4 | . 4 1 Average Overweight (x) . | . . . Largest Inventory Capacity 8 | 8 8 8 Average Capacity 6 | 6 8 5 Most Carried 7 | . 7 7 Average Carried 4 | . 4 5 Final Capacity 8 | 8 8 5 Final Carried 7 | . 7 5 Class Distribution -------------------- 65% | Mutant 34% | Scavenger-Mutant Dominant Class ---------------- Scavenger-Mutant | -10/Materials Mutant | -10/Subcaves Resources | -11 -10 -10 ----------- Run | Yrd Mat Sub Matter Collected 1097 | 179 607 311 Remotely . | . . . Salvage Created 841 | . 688 153 Parts 51 | . 35 16 Haulers Intercepted 1 | . 1 . Recyclers Shooed . | . . . Parts Field Recycled . | . . . Retrieved Matter . | . . . Parts Self-Destructed . | . . . Prevented . | . . . Kills | -11 -10 -10 ------- Run | Yrd Mat Sub Combat Hostiles Destroyed 21 | . 14 7 Guns 18 | . 14 4 Cannons 1 | . . 1 AOE 2 | . . 2 Classes Destroyed 7 | . 4 3 Hauler 1 | . 1 . Recycler 2 | . 2 . Swarmer 6 | . 3 3 Grunt 11 | . 11 . Artisan 2 | . . 2 Cobbler 2 | . . 2 Subdweller 4 | . . 4 Best Kill Streak 3 | . 2 3 Combat Bots Only 3 | . 2 3 Max Kills in Single Turn 2 | . 1 2 Gunslinging . | . . . Exploded 1 | . . 1 Melee . | . . . Uniques/NPCs Destroyed . | . . . Combat | -11 -10 -10 -------- Run | Yrd Mat Sub Hostile Shots Fired 148 | . 101 47 Missed 36 | . 22 14 Damage Taken 1517 | . 874 643 Core 259 | . 199 60 Absorbed by Shields . | . . . Core Remaining (%) 100 | 100 . . Volleys Fired 157 | . 87 70 Largest 2 | . 2 2 Hottest 128 | . 40 128 Shots Fired 265 | . 147 118 Gun 203 | . 147 56 Cannon 26 | . . 26 Launcher 7 | . . 7 Special 29 | . . 29 Kinetic 220 | . 142 78 Thermal 45 | . 5 40 Explosive . | . . . Electromagnetic . | . . . Robot Hit Streak 13 | . 9 13 Robot Miss Streak 4 | . 3 4 Penetration Max . | . . . Secondary Targets . | . . . Shots Hit Robots 159 | . 100 59 Core Hits 55 | . 34 21 Critical Kills 1 | . 1 . Critical Parts Destroyed 2 | . 2 . Critical Strikes 3 | . 3 . Destroy 3 | . 3 . Melee Attacks . | . . . Impact . | . . . Slashing . | . . . Piercing . | . . . Sneak Attacks . | . . . Combat Hostiles . | . . . Follow-up Attacks . | . . . Damage Inflicted 2188 | . 942 1246 Guns 1399 | . 920 479 Cannons 90 | . . 90 Explosions 438 | . . 438 Melee . | . . . Ramming 22 | . 22 . Kinetic 1834 | . 886 948 Thermal 332 | . 34 298 Explosive . | . . . Electromagnetic . | . . . Impact . | . . . Slashing . | . . . Piercing . | . . . Highest Corruption . | . . . Average Corruption . | . . . Corruption Purged . | . . . Corruption Blocked . | . . . Overload Shots . | . . . Overflow Damage 28 | . . 28 Projectiles . | . . . Explosions 28 | . . 28 Melee . | . . . Knockbacks 3 | . 1 2 Impact 1 | . 1 . Kinetic 2 | . . 2 Secondary . | . . . Self-Inflicted Damage 68 | . 1 67 Shots 3 | . . 3 Rammed 1 | . 1 . Targets Rammed 6 | . 6 . Kicked 5 | . 5 . Crushed . | . . . Highest Temperature 60 | . 12 60 Average Temperature 11 | . 4 21 Received Heat Transfer 534 | . 426 108 Siege Activations . | . . . Robots Corrupted . | . . . Combat Hostiles . | . . . Parts Fried . | . . . Impact Corruptions . | . . . Robots Melted . | . . . Combat Hostiles . | . . . Parts Melted . | . . . Heat Transferred 1880 | . 75 1805 Parts Sabotaged . | . . . Parts Stolen . | . . . Parts Stripped . | . . . Power Chain Reactions . | . . . Alert | -11 -10 -10 ------- Run | Yrd Mat Sub Peak Influence 221 | . 221 . Initial . | . . . Average 91 | . 94 . Maximum Alert Level 1 | . 1 . Low Security (%) 94 | 100 93 . Level 1 5 | . 6 . Level 2 . | . . . Level 3 . | . . . Level 4 . | . . . Level 5 . | . . . High Security . | . . . Max Security . | . . . Squads Dispatched 3 | . 3 . Investigation 1 | . 1 . Extermination . | . . . Reinforcement 2 | . 2 . Assault . | . . . Garrison . | . . . Intercept . | . . . Searches Triggered . | . . . Construction Impeded . | . . . Haulers Reinforced . | . . . Active Scanning Responses . | . . . Cargo Convoy Interrupts . | . . . Stealth | -11 -10 -10 --------- Run | Yrd Mat Sub Distress Signals 3 | . 3 . Communications Jammed . | . . . Distress Signals . | . . . Times Spotted 47 | . 39 8 Peak Tracking Total 5 | . 5 3 Tactical Retreats 5 | . 5 . Traps | -11 -10 -10 ------- Run | Yrd Mat Sub Traps Triggered 1 | . 1 . Indirectly . | . . . Trap Hack Attempts . | . . . Triggered . | . . . Disarmed . | . . . Reprogrammed . | . . . Reused . | . . . Traps Extracted . | . . . Installed . | . . . Triggered . | . . . Machines | -11 -10 -10 ---------- Run | Yrd Mat Sub Machines Disabled . | . . . Max in Single Turn . | . . . Machines Repaired . | . . . Machines Dismantled . | . . . Machines Sabotaged . | . . . Overloaded Fab Kills . | . . . Hacking | -11 -10 -10 --------- Run | Yrd Mat Sub Machines Accessed 4 | . 4 . Terminals 4 | . 4 . Fabricators . | . . . Repair Stations . | . . . Recycling Units . | . . . Scanalyzers . | . . . Garrison Access . | . . . Total Hacks 8 | . 8 . Successful 5 | . 5 . Failed 3 | . 3 . Catastrophic . | . . . Database Lockouts . | . . . Manual 9 | . 9 . Terminals 8 | . 8 . Fabricators . | . . . Repair Stations . | . . . Recycling Units . | . . . Scanalyzers . | . . . Garrison Access . | . . . Terminal Hacks 1 | . 1 . Robot Analysis 1 | . 1 . Fabricator Hacks . | . . . Repair Station Hacks . | . . . Recycling Unit Hacks . | . . . Scanalyzer . | . . . Garrison Access Hacks . | . . . Unauthorized Hacks 4 | . 4 . Terminals 4 | . 4 . Assimilate 1 | . 1 . Botnet 3 | . 3 . Fabricators . | . . . Repair Stations . | . . . Recycling Units . | . . . Scanalyzers . | . . . Garrison Access . | . . . Data Cores Recovered . | . . . Used . | . . . Hacking Detections 2 | . 2 . Full Trace Events . | . . . Feedback Events . | . . . Feedback Blocked . | . . . Robot Schematics Acquired . | . . . Robots Built . | . . . Authchips . | . . . Time . | . . . Total Robot Build Rating . | . . . Part Schematics Acquired . | . . . Parts Built . | . . . Authchips . | . . . Time . | . . . Total Part Build Rating . | . . . Parts Repaired . | . . . Time . | . . . Parts Recycled . | . . . Recycled Matter . | . . . Retrieved Matter . | . . . Retrieved Components . | . . . Parts Scanalyzed . | . . . Part Schematics Acquired . | . . . Parts Damaged . | . . . Bothacking | -11 -10 -10 ------------ Run | Yrd Mat Sub Used RIF Installer . | . . . Robots Hacked . | . . . Non-combat . | . . . Combat . | . . . Robot Hacks Applied . | . . . Relay Couplers Released . | . . . Fabnet Peak Effective % . | . . . Robots Rewired . | . . . Allies Hacked . | . . . Hacks Repelled . | . . . Allies | -11 -10 -10 -------- Run | Yrd Mat Sub Total Allies 1 | . 1 . Largest Group 1 | . 1 . Highest-Rated Group 10 | . 10 . Highest-Rated Ally 10 | . 10 . Total Orders . | . . . Ally Attacks . | . . . Total Damage . | . . . Kills . | . . . Allies Corrupted . | . . . Allies Melted . | . . . Intel | -11 -10 -10 ------- Run | Yrd Mat Sub Robot Analysis Total 1 | . 1 . Derelict Logs Recovered 1 | . . 1 Drone Launches . | . . . Drone Recoveries . | . . . Exploration | -11 -10 -10 ------------- Run | Yrd Mat Sub Turns Passed 1859 | 45 1129 685 Spaces Moved 1195 | 47 720 428 Core 9 | 5 4 . Treads . | . . . Legs 408 | . 394 14 Wheels 703 | 42 247 414 Hover 74 | . 74 . Flight 1 | . 1 . Fastest Speed 50 | 50 80 80 Average Speed 105 | 76 114 94 Slowest Speed 280 | 80 280 120 Overloaded Moves . | . . . Propulsion Burnouts . | . . . Robots Hopped . | . . . Cave-ins Triggered . | . . . Exploration Rate (%) 39 | 3 89 26 Regions Visited 2 Branch Regions 1 Pre-discovered Areas . | . . . Known Exits Taken . | . . . Unknown Exits Taken 2 | 1 1 . Scrap Searched 2 | . . 2 Spaces Dug . | . . . Terrain Destroyed 69 | . . 69 Melee . | . . . Projectile . | . . . AOE 69 | . . 69 Terrain Rammed . | . . . Walls Destroyed . | . . . Machines Disabled . | . . . Actions | -11 -10 -10 --------- Run | Yrd Mat Sub Total 1509 | 52 889 568 Wait 103 | . 58 45 Move 1193 | 46 719 428 Hop . | . . . Pick Up 8 | . 4 4 Fast Attach 15 | 6 7 2 Attach . | . . . Detach . | . . . Swap 13 | . 6 7 Drop 9 | . 2 7 Fire 157 | . 87 70 Melee . | . . . Ram 1 | . 1 . Kick 5 | . 5 . Crush . | . . . Escape Stasis . | . . . Rewire . | . . . Trap . | . . . Miscellaneous 5 | . . 5 Route ------- -11/Scrapyard -10/Materials (discovered 6 exits: [*Mat x3] / [*Min x2] / [*Sub]) -10/Subcaves (discovered 2 exits: [*Mat x2]) History --------- Turn | Location | Event 23 | -11/Scrapyard | Discovered new exit (range 16) 46 | -11/Scrapyard | Entered Materials 172 | -10/Materials | Discovered new exit (range 13) 261 | -10/Materials | Discovered new exit (range 4) 305 | -10/Materials | Build established: Mutant 462 | -10/Materials | Discovered new exit (range 4) 649 | -10/Materials | Build established: Scavenger-Mutant 797 | -10/Materials | Core integrity fell below 50% 832 | -10/Materials | Discovered new exit (range 15) 883 | -10/Materials | Discovered new exit (range 16) 1162 | -10/Materials | Discovered new exit (range 10) 1175 | -10/Materials | Entered Subcaves 1249 | -10/Subcaves | Shifting Twisted Machinery released Flamer 1249 | -10/Subcaves | Shifting Twisted Machinery released Scrap Shield 1250 | -10/Subcaves | Shifting Twisted Machinery released Battle Rifle 1321 | -10/Subcaves | Discovered new exit (range 8) 1323 | -10/Subcaves | Shifting Twisted Machinery released Mak. Power Source 1577 | -10/Subcaves | Build established: Mutant 1657 | -10/Subcaves | Discovered new exit (range 12) 1670 | -10/Subcaves | Ambushed by angry Subdweller bent on revenge 1730 | -10/Subcaves | Learned 4 Materials zone layouts 1821 | -10/Subcaves | Shifting Twisted Machinery released Battle Cannon 1844 | -10/Subcaves | Ambushed by Subdweller buried in earth 1847 | -10/Subcaves | Core integrity fell below 20% 1860 | -10/Subcaves | Destroyed by WT-R9H(R) with Subdweller Laser Last Messages --------------- 01664_ KN-V0S(u) cries out in pain. 01664_ KN-V0S(u) destroyed. 01669_ Acquired 4 matter. 01670_ XN-6GB(R) angrily emerges from the Twisted Machinery. 01670_ XN-6GB(R): "OHNO!" 01691_ XN-6GB(R) destroyed. 01697_ Acquired 8 matter. 01698_ Acquired 12 matter. 01730_ Acquired derelict log, extracted data. Data stored: Materials zone layouts (x4). Battle Cannon falls loose from the Twisted Machinery. 01844_ Scrap Shield destroyed. 01844_ S-10 Pest destroyed. 01844_ Destroyed Lgt. Ion Engine. 01845_ WT-R9H(R): "HIDIE!" 01847_ S-10 Pest destroyed. 01847_ Destroyed Lgt. Assault Rifle. 01847_ S-10 Pest destroyed. 01848_ Wheel destroyed. 01856_ Destroyed Sub. Optics. Map ----- +----------------------------------------------------+ | ?????????????????????????????????????????????????? | | ?????????????????????????????????????????????????? | | ?????????????????????????????????????????????????? | | ?????????????????????????????????????????????????? | | ?????????????????????????????????????????????????? | | ?????????????????????????????????????????????????? | | ?????????????????????????????????????????????????? | | ?????????????????????????????????????????????????? | | ?????????????????????????????????????????????????? | | ?????????????????????????????????????????????????? | | ?????????????????????????????????????????????????? | | ????????????????????? ?????? ???????????????????? | | ???????????????????? ???? ;;?????????????????? | | ??????????????????#"" ????; ; ?????????????????? | | ??????????????????# ###?; ;??????????????????? | | ??????????????????# # ;;??????????????????? | | ??????????????????# #??????????????????? | | ??????????????????#;; #??????????????????? | | ??????????????????# ##?????????????????? | | ??????????????????# #?????????????????? | | ??????????????????# ] R #?????????????????? | | ???????????????????# #?????????????????? | | ????????????????????# #??????????????????? | | ????????????????????# #??????????????????? | | ????????????????????# #??????????????????? | | ##???????????????????#; @ #????????????????????? | | ##??????????????????# ;##????????????????????? | | %#?????????????????#; ##?????????????????????? | | ##???????????????##### ##??????????????????????? | | #??????#####?##### #???????????????????????? | | %#??????# # ### # #####???????????????????????? | | #??????# #??????????????????????????? | | #?????### #######??????????????????????????? | | ####### # #####????????????????????????????????? | | %%% #???????????????????????????????????? | | #%# # ## ##???????????????????????????????????? | | ########## ##???????????????????????????????????? | | ????????## #???????????????????????????????????? | | ????????# #???????????????????????????????????? | | ????????## ##???????????????????????????????????? | | ????????# #???????????????????????????????????? | | ??????#### #???????????????????????????????????? | | ?????## ##???????????????????????????????????? | | ????## # #???????????????????????????????????? | | ????# # #####???????????????????????????????????? | | ????# ##???????????????????????????????????????? | | ##### ##????????????????????????????????????????? | | ## # ##????????????????????????????????????????? | | #????????????????????????????????????????? | | ########????????????????????????????????????????? | +----------------------------------------------------+ Best States ------------- Heat Dissipation 25 Energy Generation 15 Energy Capacity 250 Matter Stores 300 Matter Capacity 300 Sight Range 16 Terrain Scan Density 10 Armor Coverage 800 Evasion (%) 55 Offensive Hacking 10 Item Schematics ----------------- None Robot Schematics ------------------ None Fabricated ------------ Nothing Alien Tech Used ----------------- None Achievements -------------- None Challenges ------------ None Game ------ Seed SurveybotShieldMeganuke Manual? 0 Play Time 00:14:00 Cumulative 67.3 hours Start 2024.09.02 @ 00:35:22 End 2024.09.02 @ 00:48:52 Sessions 1 Manual Loads 0 Difficulty Rogue Special Mode None Game No. 121 Rogue 121 Adventurer 0 Explorer 0 Win Type - Total 0 Types 0/0/0/0/0/0/0/0/0 Lore% 24 Gallery% 45 Achievement% 37 Wizard Run 0 Options --------- Layout 0 ASCII 0 Keyboard 0 Movement Numpad Keybinds 0 Fullscreen 2 Font 18/SmallcapsGlow Map View 76x50 Zoom Use 0% Tactical HUD 1 Map Filters NONE Filters NONE Steam 1 RUN: e44d41ff-ae1c-4199-99de-f1905277d8e2